Workbook

Sheet Main Menu
D1: Module 3 Course 1 - Financial Modeling
D2: Lesson 1 - Cash Flow Modeling
D3: Table of Contents
A5: This workbook provides some examples of how to build a very simple financial model - cash flows. This is at
A6: the core of many financial models and it is a good place to start. Tab 1 provides a simple example
A7: of how to calculate the Net Present Value of an investment. Tab 2 provides three different approaches to
A8: how you would apply discount factors. Tab 3 provides an important calculation on how you should
A9: evaluate several investment alternatives that have positive Net Present Values. Finally, Tab 4 illustrates
A10: an advanced concept using Microsoft Excel - creating a financial function to calculate the payback period.
A12: Tab | C12: Title | F12: Description
A14: 1 | C14: Simple Cash Flow Model | D14: Example of how to build a discounted cash flow model
A15: 2 | C15: Discount Factors | D15: Three approaches to discount factors
A16: 3 | C16: Equiv Annual Annuity | D16: How to evaluate NPV's for several investments
A17: 4 | C17: Pay Back Function | D17: How to add a function for calculating payback in Microsoft Excel
B20: When you have studied this workbook, you should be able to apply four important
B21: financial indicators to investments and know how to use Microsoft Excel: | K21: Case
J22: Excel | K22: Study
C23: Financial Indicator | F23: Critical Question Answered | J23: Function | K23: Example
B24: Net Present Value | E24: How much value does this investment generate? | J24: =NPV | K24: ='1 - Cash Flow Example'!G65 -> 113785.0008
B25: Rate of Return | E25: What return do we get with this investment? | J25: =MIRR | K25: ='1 - Cash Flow Example'!G78 -> 0.1781126815
B26: Equivalent Annual Annuity | E26: What annuity payment is equal to the investment's NPV? | J26: =PMT | K26: ='3 - EAA Calculation'!E31 -> 32350.73054
B27: Discounted Payback Period | E27: How long does it take to reach payback on the investment? | J27: =Payback | K27: ='4 - Payback Function'!J206 -> 3.05

Sheet 1 - Cash Flow Example
D1: Module 3 Course 1 - Financial Modeling
D2: Lesson 1 - Cash Flow Modeling
D3: Cash Flow Example
A5: Listed below are some examples and explanations to help you understand the basics behind how you might create a cash flow
A6: type model. Cash flow type models are very common because this is the basis for calculating valuations. Therefore, it is very
A7: important to know how to estimate future cash flows when it comes to financial modeling.
A9: Step 1 - Schedule all cash outflows that will take place over the life of the investment. These include initial down
B10: payments, payments made to ship, install and place the asset into service. The initial down payment is often listed
B11: under the column Year as 0. Payments made after the initial down payment are analyzed and reported for all
B12: remaining periods. All amounts are shown as outflows or negative amounts. See example below:
E14: Internal | H14: TOTAL
C15: Supplier | D15: Legal | E15: Company | F15: Insurance | G15: Tax | H15: CASH
B16: Year | C16: Payments | D16: Fees | E16: Payroll | F16: Payments | G16: Payments | H16: OUTFLOWS
B17: 0 | C17: -150000 | D17: -12500 | E17: -6500 | F17: 0 | G17: 0 | H17: =SUM(C17:G17) -> -169000
B18: 1 | C18: -75000 | D18: -3500 | E18: -12700 | F18: -4000 | G18: -1500 | H18: =SUM(C18:G18) -> -96700
B19: 2 | C19: -10000 | D19: -750 | E19: -8000 | F19: -3000 | G19: -500 | H19: -22250
B20: 3 | C20: 0 | D20: 0 | E20: -5500 | F20: -6500 | G20: -2000 | H20: -14000
B21: 4 | C21: 0 | D21: 0 | E21: -4300 | F21: -6500 | G21: -3500 | H21: -14300
B22: 5 | C22: 0 | D22: 0 | E22: -7200 | F22: -5000 | G22: -2800 | H22: -15000
A25: Step 2 - Schedule the benefit stream over the life cycle of the investment. Benefits from an investment can take
B26: many forms such as increased sales revenues, reductions to operating expenses, improved production outputs, etc.
C27: Click Here | D27: for examples of specific types of benefits with an investment
D29: Lower | E29: Reductions | F29: TOTAL
C30: Additional | D30: Operating | E30: to Direct | F30: CASH
B31: Year | C31: Revenues | D31: Cost | E31: Labor | F31: INFLOWS
B32: 0 | C32: 0 | D32: 0 | E32: 0 | F32: =SUM(C32:E32) -> 0
B33: 1 | C33: 8000 | D33: 60000 | E33: 12000 | F33: =SUM(C33:E33) -> 80000
B34: 2 | C34: 78000 | D34: 40000 | E34: 15000 | F34: 133000
B35: 3 | C35: 80000 | D35: 45000 | E35: 10000 | F35: 135000
B36: 4 | C36: 60000 | D36: 48000 | E36: 9000 | F36: 117000
B37: 5 | C37: 45000 | D37: 51000 | E37: 6000 | F37: 102000
A40: Step 3 - Determine what hurdle rate is appropriate for the investment. As a minimum this is the cost of financing the
B41: investment. Since you want to recover more than your cost of funding the investment, you will add a risk premium to
B42: your cost to arrive at the rate of return you want to earn. From a company wide standpoint, the minimum rate of return
B43: would be your cost of capital - this would allow you to at least break even. However, you want to increase the value of
B44: your business and thus, the hurdle rate is usually higher than the company's cost of capital.
B46: Let's assume that the Cost of Capital is 10% and management has determined that this project should carry a risk
B47: premium of 3%. Therefore, the hurdle rate we will use will be 13%.
A50: Step 4 - Final step is to discount your net cash flows for the investment based on your hurdle rate. Discount Tables on
B51: Tab 2 - Discount Table are applied to each year to arrive at the Net Present Value of the investment. For accuracy, we
B52: can show Net Present Value based on the mid point discount factor or for a more conservative estimate, we can
B53: show Net Present Value based on the end of year discount factor (most commonly used approach):
F55: < - Mid Point Discounting - - > | H55: < - End of Year Discounting - >
C56: TOTAL | D56: TOTAL | E56: NET | F56: Discount | G56: Present | H56: Discount | I56: Present
C57: CASH | D57: CASH | E57: CASH | F57: Factor | G57: Value | H57: Factor | I57: Value
B58: Year | C58: OUTFLOWS | D58: INFLOWS | E58: FLOWS | F58: 0.13 | G58: Cash Flow | H58: 0.13 | I58: Cash Flow
B59: 0 | C59: =H17 -> -169000 | D59: =F32 -> 0 | E59: =C59+D59 -> -169000 | F59: 1 | G59: =E59*F59 -> -169000 | H59: 1 | I59: =E59*H59 -> -169000
B60: 1 | C60: -96700 | D60: 80000 | E60: =C60+D60 -> -16700 | F60: ='2 - Discount Table'!F30 -> 0.9407208684 | G60: =E60*F60 -> -15710.0385 | H60: ='2 - Discount Table'!F15 -> 0.8849557522 | I60: =E60*H60 -> -14778.76106
B61: 2 | C61: -22250 | D61: 133000 | E61: 110750 | F61: ='2 - Discount Table'!F31 -> 0.8324963437 | G61: 92198.97007 | H61: ='2 - Discount Table'!F16 -> 0.7831466834 | I61: 86733.49518
B62: 3 | C62: -14000 | D62: 135000 | E62: 121000 | F62: ='2 - Discount Table'!F32 -> 0.7367224281 | G62: 89143.41379 | H62: ='2 - Discount Table'!F17 -> 0.6930501623 | I62: 83859.06964
B63: 4 | C63: -14300 | D63: 117000 | E63: 102700 | F63: ='2 - Discount Table'!F33 -> 0.6519667505 | G63: 66956.98528 | H63: ='2 - Discount Table'!F18 -> 0.6133187277 | I63: 62987.83333
B64: 5 | C64: -15000 | D64: 102000 | E64: 87000 | F64: ='2 - Discount Table'!F34 -> 0.5769617261 | G64: 50195.67017 | H64: ='2 - Discount Table'!F19 -> 0.542759936 | I64: 47220.11443
E65: NET PRESENT VALUE | G65: =SUM(G59:G64) -> 113785.0008 | I65: =SUM(I59:I64) -> 97021.75152
F68: Based on our cash flow
F69: model, this investment
F70: should add value
B72: You can also calculate the Rate of Return for the investment using the XIRR
B73: function in Excel. The Rate of Return must be higher than the Hurdle Rate in
B74: order for the investment to be acceptable. Also, you should use a re-
B75: investment rate of 0% since each investment should stand on its own.
B76: No financing was required to fund this investment.
E77: Reinvestment Rate | G77: 0 | I77: Use the MIRR function in Excel to calculate the Rate of Return and use a very modest
E78: RATE OF RETURN | G78: =MIRR(E59:E64,,G77) -> 0.1781126815 | I78: reinvestment rate to provide a real acid test of what the investment is returning
B81: The =NPV function in Microsoft Excel is a little flawed in that it does not realize that the | I81: =NPV(H58,E59:E64) -> 85859.9571 | J81: < Incorrect application of the =NPV Function
B82: initial Year 0 investment should not be discounted. So be careful not to include the initial | I82: =NPV(F58,E60:E64)+E59 -> 97021.75152 | J82: < Correct application of the =NPV Function
B83: year in the cell range. Simply add the initial year to the calculated NPV.
C113: Examples of benefits from investments

Sheet 2 - Discount Table
D1: Module 3 Course 1 - Financial Modeling
D2: Lesson 1 - Cash Flow Modeling
D3: Discount Factors - Present Value of Lump Sum Amounts
A5: Once you have calculated your net benefit stream or cash flows and once you have calculated your
A6: hurdle rate, you will need to discount all of the future forecasted cash flows to a present value. There
A7: are three approaches to how you might discount your cash flows:
A9: Approach 1 - Discount the Cash Flows as though they take place as a lump sum amount at the end of the period
B11: The formula for calculating the discount factor is (1 + Hurdle Rate)^p | I11: p: Period
B13: Year or | C13: < - - - - - - - - - - - - - - - - - Hurdle Rate - - - - - - - - - - - - - - - - - - >
B14: Period | C14: 0.1 | D14: 0.11 | E14: 0.12 | F14: 0.13 | G14: 0.14 | H14: 0.15
B15: 1 | C15: =1/((1+C14)^$B$15) -> 0.9090909091 | D15: =1/((1+D14)^$B$15) -> 0.9009009009 | E15: 0.8928571429 | F15: 0.8849557522 | G15: 0.8771929825 | H15: 0.8695652174
B16: 2 | C16: =1/((1+C14)^$B$16) -> 0.826446281 | D16: =1/((1+D14)^$B$16) -> 0.8116224332 | E16: 0.7971938776 | F16: 0.7831466834 | G16: 0.7694675285 | H16: 0.7561436673
B17: 3 | C17: =1/((1+C14)^$B$17) -> 0.7513148009 | D17: =1/((1+D14)^$B$17) -> 0.7311913813 | E17: 0.7117802478 | F17: 0.6930501623 | G17: 0.6749715162 | H17: 0.6575162324
B18: 4 | C18: =1/((1+C14)^$B$18) -> 0.6830134554 | D18: =1/((1+D14)^$B$18) -> 0.6587309741 | E18: 0.6355180784 | F18: 0.6133187277 | G18: 0.5920802774 | H18: 0.5717532456
B19: 5 | C19: =1/((1+C14)^$B$19) -> 0.6209213231 | D19: =1/((1+D14)^$B$19) -> 0.5934513281 | E19: 0.5674268557 | F19: 0.542759936 | G19: 0.5193686644 | H19: 0.4971767353
B21: Example: Your lump sum net cash flow at the end of year 4 is $ 10,000 and your
B22: hurdle rate is 13%. Multiply $ 10,000 by .6133 = $ 6,133 present value.
A24: Approach 2 - Discount the Cash Flows as though they take place throughout the period
B26: The formula for calculating the discount factor is (1 + Hurdle Rate)^p-.5 | I26: 0.5
B28: Year or | C28: < - - - - - - - - - - - - - - - - - Hurdle Rate - - - - - - - - - - - - - - - - - - >
B29: Period | C29: 0.1 | D29: 0.11 | E29: 0.12 | F29: 0.13 | G29: 0.14 | H29: 0.15
B30: 1 | C30: =1/((1+C29)^($B$30-$I$26)) -> 0.9534625892 | D30: =1/((1+D29)^($B$30-$I$26)) -> 0.9491579958 | E30: 0.9449111825 | F30: 0.9407208684 | G30: 0.9365858116 | H30: 0.9325048082
B31: 2 | C31: =1/((1+C29)^($B$31-$I$26)) -> 0.866784172 | D31: =1/((1+D29)^($B$31-$I$26)) -> 0.8550972935 | E31: 0.8436706987 | F31: 0.8324963437 | G31: 0.8215665014 | H31: 0.8108737463
B32: 3 | C32: =1/((1+C29)^($B$32-$I$26)) -> 0.7879856109 | D32: =1/((1+D29)^($B$32-$I$26)) -> 0.770357922 | E32: 0.7532774095 | F32: 0.7367224281 | G32: 0.7206723696 | H32: 0.7051076055
B33: 4 | C33: =1/((1+C29)^($B$33-$I$26)) -> 0.7163505554 | D33: =1/((1+D29)^($B$33-$I$26)) -> 0.694016146 | E33: 0.6725691157 | F33: 0.6519667505 | G33: 0.6321687453 | H33: 0.6131370482
B34: 5 | C34: =1/((1+C29)^($B$34-$I$26)) -> 0.6512277776 | D34: =1/((1+D29)^($B$34-$I$26)) -> 0.6252397712 | E34: 0.600508139 | F34: 0.5769617261 | G34: 0.5545339871 | H34: 0.5331626506
A37: Approach 3 - Discount the Cash Flows as though they take place as a lump sum amount at the beginning of the year
B39: Year or | C39: < - - - - - - - - - - - - - - - - - Hurdle Rate - - - - - - - - - - - - - - - - - - >
B40: Period | C40: 0.1 | D40: 0.11 | E40: 0.12 | F40: 0.13 | G40: 0.14 | H40: 0.15
B41: 1 | C41: 1 | D41: 1 | E41: 1 | F41: 1 | G41: 1 | H41: 1
B42: 2 | C42: =1/((1+C40)^$B$41) -> 0.9090909091 | D42: =1/((1+D40)^$B$41) -> 0.9009009009 | E42: 0.8928571429 | F42: 0.8849557522 | G42: 0.8771929825 | H42: 0.8695652174
B43: 3 | C43: =1/((1+C40)^$B$42) -> 0.826446281 | D43: =1/((1+D40)^$B$42) -> 0.8116224332 | E43: 0.7971938776 | F43: 0.7831466834 | G43: 0.7694675285 | H43: 0.7561436673
B44: 4 | C44: =1/((1+C40)^$B$43) -> 0.7513148009 | D44: =1/((1+D40)^$B$43) -> 0.7311913813 | E44: 0.7117802478 | F44: 0.6930501623 | G44: 0.6749715162 | H44: 0.6575162324
B45: 5 | C45: =1/((1+C40)^$B$44) -> 0.6830134554 | D45: =1/((1+D40)^$B$44) -> 0.6587309741 | E45: 0.6355180784 | F45: 0.6133187277 | G45: 0.5920802774 | H45: 0.5717532456

Sheet 3 - EAA Calculation
D1: Module 3 Course 1 - Financial Modeling
D2: Lesson 1 - Cash Flow Modeling
D3: Using the Equivalent Annual Annuity Formula (EAA)
A5: If you are evaluating several alternative investments, then you should consider using the Equivalent Annual
A6: Annuity (EAA) amount. This can be very important when you are dealing with investments that have different
A7: life cycles, many of which have positive Net Present Values. You do not want to simply choose the investment
A8: with the highest Net Present Value. The EAA puts all investments on an "equal footing" so you can better
A9: evaluate which investment is the best choice.
A11: The formula for calculating EAA is:
A23: If we go back to our example on Tab 1 within this workbook:
A25: The hurdle rate for the investment was: | E25: 0.13 | G25: You will need to know these three
A26: The number of years in the life cycle: | E26: 5 | G26: factors in order to calculate the EAA
A27: Net Present Value of the investment: | E27: ='1 - Cash Flow Example'!G65 -> 113785.0008
A29: If we use the formula above > | E29: =(E25*E27)/((1-(1+E25)^-E26)) -> 32350.73054
A31: A much easier way is to use =PMT | E31: =PMT(E25,E26,-E27) -> 32350.73054
A34: Use this amount to evaluate the investment against other competing investments. The investment
A35: with the higher EAA is returning a higher amount sooner as opposed to another investment which may
A36: have a higher NPV, but it may not provide a return until much later. A lot of things can change over
A37: time, so you should always use EAA in conjunction with NPV, especially when you have competing
A38: projects that have different life cycles / time frames.

Sheet 4 - Payback Function
D1: Module 3 Course 1 - Financial Modeling
D2: Lesson 1 - Cash Flow Modeling
D3: Adding Function for Pay Back Calculation
A5: In addition to calculating Net Present Value, you may want to evaluate the investment using
A6: additional criteria such as Payback Period. This worksheet documents how to add a function
A7: into Excel for calculating pay back. The code behind this function is:
I9: You will need to copy and post this range of cells highlighted in blue
B10: Function Payback(CumCashFlow)
B11: Dim csum 'csum = cumulative cash flow
B12: Dim i As Integer
B13: If CumCashFlow(1) >= 0 Or Application.Sum(CumCashFlow) < 0 Then
B14: Payback = -1
B15: Else
B16: csum = 0
B17: For i = 1 To Application.Count(CumCashFlow)
B18: csum = csum + CumCashFlow(i)
B19: If csum > 0 Then
B20: Exit For
B21: End If
B22: Next i
B23: csum = csum - CumCashFlow(i)
B24: Payback = Application.Round(i - 2 - csum / CumCashFlow(i),2)
B25: End If
B26: End Function
A29: STEPS FOR ADDING THE PAYBACK FUNCTION:
B31: Depending upon which version of Excel you have, you will need to use the Visual Basic editor. It is
B32: located as part of your Developer tools within Excel. So you may need to enable Developer first.
B33: This will allow you to access the Visual Basic editor. The screen shots below show how to enable the
B34: Developer tools within Excel:
B36: NOTE: You can short cut the process by going directly to the Visual Basic editor by hitting Alt / F11
B38: From the main menu, select File > Options
B62: From Excel Options, select Customize Ribbon and make sure the Developer
B63: tool is enabled - should appear in the right side panel with a check mark:
B85: The Developer tab should now appear as part of your main menu. On the very left end
B86: you will see the Visual Basic icon:
B106: You should see a new Visual Basic for Applications window show up. Select Insert >
B107: Module. We want to place our payback function within a module.
B129: Click on the Module icon to make sure you are working within the right location:
B153: When you click on the Visual Basic icon, a new window will appear, allowing you to copy
B154: and paste the function code. Select View > Code.
B180: Go back to the top of this worksheet and copy and paste the code into the right
B181: panel:
C183: The cells that you want to copy are highlighted in light blue
B204: Test out the function. You should be able to enter =payback within a cell and highlight
B205: the discounted cash flows
E206: Let's go back to Tab 1 and calculate payback > | J206: =payback('1 - Cash Flow Example'!G59:G64) -> 3.05
B208: Save the your excel file as a "Macro Enabled Workbook" so that the new function will work.
B209: You can save the file as a new file or overwrite the file.
